Cogmind - Beta 13 @@@ ROGUE MODE // 2024.05.12 @ 14:43:28 Player: Cheeriohz Result: Destroyed by as-02532 with Assembled P-sword Performance ------------- Evolutions (3) 1500 Regions Visited (12) 2400 Robots Destroyed (134) 670 Value Destroyed (4804) 4804 Prototype IDs (14) 280 Alien Tech Used (0) 0 Bonus (3305) 3305 TOTAL SCORE: 12959 Bonus ------- High Alert Combat Kills 529 Follower Combat Kills 247 Entered Garrisons 200 Met Imprinter 300 Destroyed Z-Imprinter 1000 Triggered Deep Caves Wall 500 Exposed GOLEM Chamber 500 Acquired ECA 300 Friendly Fire -271 Cogmind --------- Core Integrity 0/700 Matter 98/300 Energy 73/100 System Corruption 9% Temperature Cool (0) Movement Treading (330) Ox2 Location -7/Deep Caves Parts ------- > --- POWER (1) -------- (None) > --- PROPULSION (3) --- Armored Treads Armored Treads > --- UTILITY (6) ------ Huge Storage Unit Assembled Biocell Array Improved Signal Interpreter GOLEM Unit > --- WEAPON (3) ------- Makeshift Hammer > --- INVENTORY (25) --- Cooled Ion Engine Advanced Heat Sink Experimental Heat Sink Advanced Cooling System Compact Battery (200) Zionite Biocell (600) High-capacity Matter Pod (200) Structural Scanner Improved Sensor Array Advanced Terrain Scan Processor Encrypted Comm Array Transmission Jammer Hacking Suite Long-range Tractor Beam Hacking Drone Bay Peak State ------------ > --- POWER ------------ Zionite Light DM Reactor > --- PROPULSION ------- Heavy Treads Armored Wheel > --- UTILITY ---------- Huge Storage Unit Zionite Biocell Improved Signal Interpreter Advanced Targeting Computer Zionite Weapon Casing Improved Light Armor Plating > --- WEAPON ----------- Minigun Minigun Proton Missile Launcher > --- INVENTORY -------- Cooled Ion Engine Armored Treads Armored Treads Armored Treads Armored Wheel Armored Wheel Advanced Heat Sink Experimental Heat Sink Advanced Cooling System Compact Battery High-capacity Matter Pod Structural Scanner Improved Sensor Array Advanced Terrain Scan Processor Encrypted Comm Array Transmission Jammer Hacking Suite Long-range Tractor Beam Hacking Drone Bay EM Pulse Cannon Makeshift Shrapnel Gun Makeshift Shrapnel Gun Smartbomb Launcher Makeshift Hammer [Rating: 63] Favorites ----------- Power Improved Deuterium Engine Engine Improved Deuterium Engine Power Core Nuclear Core Reactor Zionite Light DM Reactor Propulsion Armored Wheel Treads Advanced Treads Leg Aluminum Leg Wheel Armored Wheel Utility Huge Storage Unit Device Improved Sensor Array Storage Huge Storage Unit Processor Advanced Targeting Computer Hackware Hacking Suite Protection Light Armor Plating Weapon Minigun Energy Gun Particle Gun Energy Cannon EM Pulse Cannon Ballistic Gun Minigun Ballistic Cannon Improved Light Cannon Launcher Proton Missile Launcher Impact Weapon Heavy Mace Build | -11 -10 -10 -10 -9 -8 -8 -8 -7 -7 -7 -7 -7 ------- Run | Yrd Mat Min Exi Min Mat Gar Mat Fac Low Low Zio Dee Slots Evolved 6 | . . . . . 4 . . 2 . . . . Power . | . . . . . . . . . . . . . Propulsion 1 | . . . . . 1 . . . . . . . Utility 4 | . . . . . 2 . . 2 . . . . Weapon 1 | . . . . . 1 . . . . . . . Parts Attached 167 | 1 12 10 2 . 19 18 29 32 8 5 4 27 Power 8 | . . 1 . . 1 . . 3 . . . 3 Engine 6 | . . 1 . . 1 . . 2 . . . 2 Core 1 | . . . . . . . . 1 . . . . Reactor 1 | . . . . . . . . . . . . 1 Propulsion 29 | . 5 3 . . 3 . 9 2 2 . 1 4 Treads 12 | . 3 1 . . 1 . 2 1 . . 1 3 Leg . | . . . . . . . . . . . . . Wheel 17 | . 2 2 . . 2 . 7 1 2 . . 1 Hover . | . . . . . . . . . . . . . Flight . | . . . . . . . . . . . . . Utility 45 | 1 5 1 2 . 4 3 6 14 1 . 1 7 Device 12 | 1 . . . . . . . 7 1 . . 3 Storage 5 | . 2 . 1 . . 1 . . . . . 1 Processor 3 | . . . . . 1 . 1 1 . . . . Hackware 2 | . . . . . . . 1 1 . . . . Protection 23 | . 3 1 1 . 3 2 4 5 . . 1 3 Artifact . | . . . . . . . . . . . . . Weapon 85 | . 2 5 . . 11 15 14 13 5 5 2 13 Energy Gun 5 | . . 1 . . 1 . . . . . . 3 Energy Cannon 3 | . . . . . . . . 1 . 1 . 1 Ballistic Gun 49 | . 2 1 . . 8 8 10 8 5 2 2 3 Ballistic Cannon 2 | . . 2 . . . . . . . . . . Launcher 18 | . . 1 . . 2 4 2 2 . 2 . 5 Special Weapon . | . . . . . . . . . . . . . Impact Weapon 8 | . . . . . . 3 2 2 . . . 1 Slashing Weapon . | . . . . . . . . . . . . . Piercing Weapon . | . . . . . . . . . . . . . Special Melee Weapon . | . . . . . . . . . . . . . Unidentified Prototypes 7 | . . . . . 2 . . . . . . 5 Parts Lost 25 | . . . . . . . 10 . . . . 15 Power 1 | . . . . . . . . . . . . 1 Propulsion 9 | . . . . . . . 5 . . . . 4 Utility 6 | . . . . . . . 2 . . . . 4 Weapon 9 | . . . . . . . 3 . . . . 6 Highest Loss Streak 11 | . . . . . . . 5 . . . . 11 To Critical Strikes . | . . . . . . . . . . . . . Average Slot Usage (%) 97 | . 100 99 100 100 98 100 97 100 99 100 98 87 Engine 8 | . 14 14 14 14 9 9 9 3 7 7 7 6 Treads 8 | . 7 4 14 14 9 9 9 7 7 7 7 9 Wheel 14 | . 9 22 14 14 17 18 15 15 14 15 13 5 Device 4 | . . . . . . . . 5 14 15 15 1 Storage 9 | . 14 14 14 14 9 9 9 7 7 7 7 11 Processor 9 | . . . . . 8 9 9 15 15 15 15 14 Hackware 3 | . . . . . . . 5 14 7 7 3 . Protection 10 | . 13 14 14 14 17 18 12 1 . . 3 14 Ballistic Gun 19 | . 28 10 . . 26 20 25 19 19 21 23 18 Ballistic Cannon 3 | . . 10 28 28 . . . . . . . . Impact Weapon 1 | . . . . . . 5 . 3 . . . . Naked Turns . | . . . . . . . . . . . . . Heaviest Build 114 | 12 90 96 96 56 71 114 113 104 105 103 104 110 Greatest Support 90 | 20 40 26 10 10 22 22 44 24 24 24 24 90 Greatest Overweight (x) 11 | . 8 9 9 5 5 5 11 4 8 4 8 9 Average Overweight (x) 4 | . 1 5 7 5 2 4 4 4 4 4 4 6 Largest Inventory Capacity 25 | 8 25 25 25 20 20 25 25 25 25 25 25 25 Average Capacity 23 | 8 14 25 23 20 20 24 25 25 25 25 25 25 Most Carried 25 | 6 25 25 25 20 20 25 25 25 25 25 25 25 Average Carried 22 | 6 11 24 23 20 19 24 22 24 24 25 24 24 Final Capacity 25 | 8 25 25 20 20 20 25 25 25 25 25 25 25 Final Carried 25 | 6 25 25 20 20 20 25 25 25 25 25 25 15 Class Distribution -------------------- 35% | Mutant 25% | Tank 14% | Scavenger-Skirmisher 6% | Skirmisher 5% | Hacker-Mutant 3% | Hacker-Skirmisher 3% | Scavenger-Gunner 3% | Gunner Dominant Class ---------------- Mutant | -10/Materials Mutant | -10/Mines Mutant | -10/Exiles Mutant | -9/Mines Tank | -8/Materials Mutant | -8/Garrison Scavenger-Gunner | -8/Materials Hacker-Mutant | -7/Factory Scavenger-Skirmisher | -7/Lower Caves Scavenger-Skirmisher | -7/Lower Caves Scavenger-Skirmisher | -7/Zion Tank | -7/Deep Caves Resources | -11 -10 -10 -10 -9 -8 -8 -8 -7 -7 -7 -7 -7 ----------- Run | Yrd Mat Min Exi Min Mat Gar Mat Fac Low Low Zio Dee Matter Collected 4626 | 238 320 303 56 28 456 627 1192 722 166 122 40 356 Remotely 288 | . . . . . . . . 288 . . . . Salvage Created 5344 | 108 597 243 . . 495 712 1554 718 80 88 . 749 Parts 267 | 5 40 16 . . 27 34 69 43 6 8 . 19 Haulers Intercepted 8 | . 2 . . . 3 . 1 2 . . . . Recyclers Shooed 3 | . . 1 . . 1 . 1 . . . . . Parts Field Recycled . | . . . . . . . . . . . . . Retrieved Matter . | . . . . . . . . . . . . . Parts Self-Destructed 15 | . . . . . . . . . 7 8 . . Prevented . | . . . . . . . . . . . . . Kills | -11 -10 -10 -10 -9 -8 -8 -8 -7 -7 -7 -7 -7 ------- Run | Yrd Mat Min Exi Min Mat Gar Mat Fac Low Low Zio Dee Combat Hostiles Destroyed 140 | . 13 6 . . 5 21 26 16 2 6 . 45 Guns 69 | . 13 2 . . 2 9 22 13 2 . . 6 Cannons 2 | . . 2 . . . . . . . . . . AOE 66 | . . 2 . . 3 12 4 3 . 6 . 36 Classes Destroyed 20 | 2 6 . . . 1 1 3 1 2 . . 4 Worker 3 | . 1 1 . . . . 1 . . . . . Builder 4 | . 1 1 . . 1 . 1 . . . . . Tunneler 3 | 1 . 2 . . . . . . . . . . Hauler 8 | . 2 . . . 3 . 1 2 . . . . Recycler 10 | 1 1 1 . . 1 . 4 2 . . . . Mechanic 1 | . . . . . . . 1 . . . . . Operator 1 | . 1 . . . . . . . . . . . Watcher 2 | . . . . . 1 . 1 . . . . . Swarmer 27 | . 6 2 . . . . 2 11 . 6 . . Grunt 53 | . 7 4 . . 6 17 16 3 . . . . Brawler 1 | . . . . . . . 1 . . . . . Protector 1 | . . . . . . . 1 . . . . . Sentry 11 | . . . . . . 4 6 1 . . . . Programmer 1 | . . . . . . . . 1 . . . . Z-Technician 5 | . . . . . . . . . . . . 5 Z-Light 2 | . . . . . . . . . . . . 2 Thief 1 | . . . . . . . . . 1 . . . Assembler 1 | . . . . . . . . . . . . 1 Assembled 39 | . . . . . . . . . . . . 39 Golem 3 | . . . . . . . . . . . . 3 Mutant 1 | . . . . . . . . . 1 . . . Best Kill Streak 39 | 2 4 3 . . 3 5 13 5 3 4 . 39 Combat Bots Only 38 | . 3 2 . . 3 5 10 4 1 4 . 38 Max Kills in Single Turn 12 | 1 1 2 . . 2 3 4 3 1 3 . 12 Gunslinging 1 | . . . . . . . 1 . . . . 1 Exploded 11 | . . 2 . . 2 3 3 3 . 3 . 11 Melee . | . . . . . . . . . . . . . Uniques/NPCs Destroyed 1 | . . . . . . . . . . . . 1 Z-Imprinter (-7/Deep Caves) Combat | -11 -10 -10 -10 -9 -8 -8 -8 -7 -7 -7 -7 -7 -------- Run | Yrd Mat Min Exi Min Mat Gar Mat Fac Low Low Zio Dee Hostile Shots Fired 590 | . 49 31 . . 13 50 162 75 8 37 . 165 Missed 150 | . 15 5 . . 5 13 37 26 . 18 . 31 Damage Taken 8180 | . 377 356 . . 166 612 2035 683 127 218 . 3606 Core 1135 | . 78 38 . . 7 82 199 153 41 33 . 504 Absorbed by Shields 164 | . . . . . . . . . . . . 164 Reduced by Siege Mode 127 | . . . . . . . . . . . . 127 Redirected to Shielding 157 | . . . . . . . . . . . . 157 Core Remaining (%) 66 | 100 . . . 53 . . 47 . . . . . Volleys Fired 338 | 7 44 33 . . 26 45 79 37 7 10 . 50 Largest 3 | 2 2 2 . . 3 3 3 3 3 3 . 3 Hottest 97 | 40 40 85 . . 69 79 79 75 75 73 . 97 Shots Fired 754 | 14 88 61 . . 70 85 217 105 17 14 . 83 Gun 657 | 14 88 36 . . 66 64 214 103 14 6 . 52 Cannon 44 | . . 20 . . . . . . 3 4 . 17 Launcher 53 | . . 5 . . 4 21 3 2 . 4 . 14 Special . | . . . . . . . . . . . . . Kinetic 666 | 14 88 47 . . 66 64 214 103 14 6 . 50 Thermal 18 | . . 9 . . . . . . 3 4 . 2 Explosive 46 | . . 5 . . 4 21 3 2 . 4 . 7 Electromagnetic 24 | . . . . . . . . . . . . 24 Robot Hit Streak 29 | 3 11 14 . . 8 16 12 11 9 8 . 29 Robot Miss Streak 5 | 2 2 5 . . 3 2 2 3 1 1 . 4 Penetration Max 1 | . . . . . . . 1 . . . . . Secondary Targets 9 | . . . . . . . 6 1 . . . 2 Max Gunslinging Chain 1 | . . . . . . . 1 1 . . . 1 Shots Hit Robots 511 | 8 56 38 . . 46 53 159 71 14 8 . 58 Core Hits 339 | 3 31 16 . . 29 41 70 40 6 12 . 91 Critical Kills 2 | . . . . . . . 1 . . . . 1 Critical Parts Destroyed 6 | . . . . . 2 . 3 1 . . . . Critical Strikes 10 | . . . . . 2 1 4 1 . . . 2 Destroy 9 | . . . . . 2 1 4 1 . . . 1 Corrupt 1 | . . . . . . . . . . . . 1 Melee Attacks 24 | . . . . . . 13 2 4 . . . 5 Impact 24 | . . . . . . 13 2 4 . . . 5 Slashing . | . . . . . . . . . . . . . Piercing . | . . . . . . . . . . . . . Sneak Attacks . | . . . . . . . . . . . . . Combat Hostiles . | . . . . . . . . . . . . . Follow-up Attacks . | . . . . . . . . . . . . . Damage Inflicted 17378 | 92 631 786 . . 957 2431 3270 1423 258 649 . 6881 Guns 7507 | 92 631 341 . . 697 790 2658 1226 230 150 . 692 Cannons 551 | . . 205 . . . . . . 28 . . 318 Explosions 9315 | . . 240 . . 260 1641 607 197 . 499 . 5871 Melee . | . . . . . . . . . . . . . Ramming 5 | . . . . . . . 5 . . . . . Kinetic 7592 | 92 631 461 . . 697 790 2658 1226 230 150 . 657 Thermal 2348 | . . 85 . . . . . . 28 . . 2235 Explosive 6797 | . . 240 . . 260 1641 607 197 . 499 . 3353 Electromagnetic 636 | . . . . . . . . . . . . 636 Impact . | . . . . . . . . . . . . . Slashing . | . . . . . . . . . . . . . Piercing . | . . . . . . . . . . . . . Highest Corruption 9 | . . . . . . . . . . . . 9 Average Corruption 5 | . . . . . . . . . . . . 5 Corruption Purged . | . . . . . . . . . . . . . Corruption Blocked . | . . . . . . . . . . . . . Effects 1 | . . . . . . . . . . . . 1 Message Errors 1 | . . . . . . . . . . . . 1 Overload Shots . | . . . . . . . . . . . . . Overflow Damage 719 | . . 17 . . 18 16 . . . . . 668 Projectiles . | . . . . . . . . . . . . . Explosions 719 | . . 17 . . 18 16 . . . . . 668 Melee . | . . . . . . . . . . . . . Knockbacks 1 | . . . . . . . 1 . . . . . Impact 1 | . . . . . . . 1 . . . . . Kinetic . | . . . . . . . . . . . . . Secondary . | . . . . . . . . . . . . . Self-Inflicted Damage 269 | . . 41 . . 15 44 90 26 . 15 . 38 Shots 13 | . . 2 . . 1 3 3 1 . 1 . 2 Rammed 2 | . . . . . . . 2 . . . . . Targets Rammed 2 | . . . . . . . 2 . . . . . Kicked . | . . . . . . . . . . . . . Crushed . | . . . . . . . . . . . . . Highest Temperature 300 | . 43 195 . . 42 150 289 58 40 3 . 300 Average Temperature 53 | . 13 53 . . 7 34 98 18 20 2 . 90 Received Heat Transfer 2235 | . 114 156 . . 81 342 1053 108 40 18 . 323 Effects 2 | . . . . . . . 2 . . . . . Interference 2 | . . . . . . . 2 . . . . . Siege Activations 7 | . . . . . . . . . . . . 7 Total Turns 203 | . . . . . . . . . . . . 203 Longest Duration 101 | . . . . . . . . . . . . 101 Robots Corrupted 3 | . . . . . . . . . . . . 3 Combat Hostiles 3 | . . . . . . . . . . . . 3 Parts Fried . | . . . . . . . . . . . . . Impact Corruptions . | . . . . . . . . . . . . . Robots Melted . | . . . . . . . . . . . . . Combat Hostiles . | . . . . . . . . . . . . . Parts Melted 1 | . . 1 . . . . . . . . . . Heat Transferred 296 | . . 222 . . . . . . 37 . . 37 Parts Sabotaged . | . . . . . . . . . . . . . Parts Stolen 1 | . . . . . . . . . 1 . . . Parts Stripped . | . . . . . . . . . . . . . Power Chain Reactions . | . . . . . . . . . . . . . Alert | -11 -10 -10 -10 -9 -8 -8 -8 -7 -7 -7 -7 -7 ------- Run | Yrd Mat Min Exi Min Mat Gar Mat Fac Low Low Zio Dee Peak Influence 912 | 10 323 235 . 104 155 825 912 277 . . . . Initial 401 | . 6 73 . . . 14 401 260 . . . . Average 250 | 6 160 83 . 3 27 446 648 161 . . . . Maximum Alert Level 3 | . 1 1 . . . 3 3 1 . . . . Low Security (%) 56 | 100 70 95 . 100 100 20 . 55 . . . . Level 1 16 | . 29 4 . . . 21 . 44 . . . . Level 2 19 | . . . . . . 39 73 . . . . . Level 3 7 | . . . . . . 18 26 . . . . . Level 4 . | . . . . . . . . . . . . . Level 5 . | . . . . . . . . . . . . . High Security . | . . . . . . . . . . . . . Max Security . | . . . . . . . . . . . . . Squads Dispatched 14 | . 2 . . . 1 . 7 4 . . . . Investigation 6 | . 1 . . . 1 . 3 1 . . . . Extermination 1 | . . . . . . . . 1 . . . . Reinforcement 5 | . 1 . . . . . 2 2 . . . . Assault 2 | . . . . . . . 2 . . . . . Garrison . | . . . . . . . . . . . . . Intercept . | . . . . . . . . . . . . . Searches Triggered . | . . . . . . . . . . . . . Construction Impeded 1 | . . . . . . . . 1 . . . . Haulers Reinforced 1 | . . . . . . . . 1 . . . . Active Scanning Responses . | . . . . . . . . . . . . . Cargo Convoy Interrupts . | . . . . . . . . . . . . . Stealth | -11 -10 -10 -10 -9 -8 -8 -8 -7 -7 -7 -7 -7 --------- Run | Yrd Mat Min Exi Min Mat Gar Mat Fac Low Low Zio Dee Distress Signals 9 | . 1 . . . 3 . 4 1 . . . . Communications Jammed . | . . . . . . . . . . . . . Distress Signals . | . . . . . . . . . . . . . Times Spotted 198 | . 22 8 . 1 16 20 39 24 2 8 . 58 Peak Tracking Total 37 | . 4 3 . 1 3 4 8 4 1 4 . 37 Tactical Retreats 10 | . 1 2 . . . . 3 2 . . . 2 Traps | -11 -10 -10 -10 -9 -8 -8 -8 -7 -7 -7 -7 -7 ------- Run | Yrd Mat Min Exi Min Mat Gar Mat Fac Low Low Zio Dee Traps Triggered 10 | . 1 . . . 1 6 2 . . . . . Indirectly . | . . . . . . . . . . . . . Trap Hack Attempts . | . . . . . . . . . . . . . Triggered . | . . . . . . . . . . . . . Disarmed . | . . . . . . . . . . . . . Reprogrammed . | . . . . . . . . . . . . . Reused . | . . . . . . . . . . . . . Traps Extracted . | . . . . . . . . . . . . . Installed . | . . . . . . . . . . . . . Triggered . | . . . . . . . . . . . . . Machines | -11 -10 -10 -10 -9 -8 -8 -8 -7 -7 -7 -7 -7 ---------- Run | Yrd Mat Min Exi Min Mat Gar Mat Fac Low Low Zio Dee Machines Disabled 14 | . 1 2 . . . 3 3 . 1 . . 4 Max in Single Turn 2 | . 1 2 . . . 1 2 . 1 . . 1 Garrison Access 2 | . . . . . . . 1 1 . . . . Garrison Relay 1 | . . . . . . 1 . . . . . . Machines Repaired . | . . . . . . . . . . . . . Machines Dismantled . | . . . . . . . . . . . . . Machines Sabotaged . | . . . . . . . . . . . . . Overloaded Fab Kills . | . . . . . . . . . . . . . Hacking | -11 -10 -10 -10 -9 -8 -8 -8 -7 -7 -7 -7 -7 --------- Run | Yrd Mat Min Exi Min Mat Gar Mat Fac Low Low Zio Dee Machines Accessed 37 | . 8 . 1 . 7 3 6 10 1 1 . . Terminals 24 | . 7 . . . 6 3 4 4 . . . . Fabricators 2 | . . . . . . . . 2 . . . . Repair Stations 2 | . . . . . . . 1 1 . . . . Recycling Units 2 | . 1 . . . . . . 1 . . . . Scanalyzers 1 | . . . . . . . . 1 . . . . Garrison Access 3 | . . . . . 1 . 1 1 . . . . Total Hacks 94 | . 22 . 1 . 19 7 21 22 1 1 . . Successful 45 | . 10 . 1 . 10 4 6 12 1 1 . . Failed 49 | . 12 . . . 9 3 15 10 . . . . Catastrophic 13 | . 3 . . . 1 1 6 2 . . . . Database Lockouts . | . . . . . . . . . . . . . Manual 53 | . 14 . . . 9 1 15 9 . . 5 . Terminals 73 | . 21 . . . 17 7 16 12 . . . . Fabricators 4 | . . . . . . . . 4 . . . . Repair Stations 5 | . . . . . . . 3 2 . . . . Recycling Units 2 | . 1 . . . . . . 1 . . . . Scanalyzers 2 | . . . . . . . . 2 . . . . Garrison Access 5 | . . . . . 2 . 2 1 . . . . Terminal Hacks 26 | . 6 . 1 . 7 3 3 4 1 1 . . Record 1 | . . . 1 . . . . . . . . . Robot Analysis 5 | . 3 . . . 2 . . . . . . . Prototype ID Bank 4 | . 2 . . . 1 . . 1 . . . . Open Door 2 | . . . . . . . . . 1 1 . . Branch Access Points 2 | . . . . . . . 1 1 . . . . Emergency Access Points 1 | . . . . . . 1 . . . . . . Alert Level 1 | . . . . . 1 . . . . . . . Unreport Threat 6 | . . . . . 2 . 2 2 . . . . Locate Traps 2 | . 1 . . . 1 . . . . . . . Garrison Registry 1 | . . . . . . 1 . . . . . . Security Stations 1 | . . . . . . 1 . . . . . . Fabricator Hacks . | . . . . . . . . . . . . . Repair Station Hacks 3 | . . . . . . . 1 2 . . . . Scan Component 2 | . . . . . . . 1 1 . . . . Repair 1 | . . . . . . . . 1 . . . . Recycling Unit Hacks 1 | . . . . . . . . 1 . . . . Retrieve Components 1 | . . . . . . . . 1 . . . . Scanalyzer 2 | . . . . . . . . 2 . . . . Insert Component 1 | . . . . . . . . 1 . . . . Analyze 1 | . . . . . . . . 1 . . . . Garrison Access Hacks 2 | . . . . . 1 . . 1 . . . . Unlock Access 1 | . . . . . 1 . . . . . . . Seal Access 1 | . . . . . . . . 1 . . . . Unauthorized Hacks 11 | . 4 . . . 2 1 2 2 . . . . Terminals 10 | . 3 . . . 2 1 2 2 . . . . Track 1 | . 1 . . . . . . . . . . . Botnet 9 | . 2 . . . 2 1 2 2 . . . . Fabricators . | . . . . . . . . . . . . . Repair Stations . | . . . . . . . . . . . . . Recycling Units 1 | . 1 . . . . . . . . . . . Tunnel 1 | . 1 . . . . . . . . . . . Scanalyzers . | . . . . . . . . . . . . . Garrison Access . | . . . . . . . . . . . . . Data Cores Recovered . | . . . . . . . . . . . . . Used . | . . . . . . . . . . . . . Hacking Detections 28 | . 6 . . . 7 2 6 7 . . . . Full Trace Events 3 | . . . . . . . 2 1 . . . . Feedback Events . | . . . . . . . . . . . . . Feedback Blocked . | . . . . . . . . . . . . . Robot Schematics Acquired . | . . . . . . . . . . . . . Robots Built . | . . . . . . . . . . . . . Authchips . | . . . . . . . . . . . . . Time . | . . . . . . . . . . . . . Total Robot Build Rating . | . . . . . . . . . . . . . Part Schematics Acquired 1 | . . . . . . . . 1 . . . . Parts Built . | . . . . . . . . . . . . . Authchips . | . . . . . . . . . . . . . Time . | . . . . . . . . . . . . . Total Part Build Rating . | . . . . . . . . . . . . . Parts Repaired 1 | . . . . . . . . 1 . . . . Time 78 | . . . . . . . . 78 . . . . Parts Recycled . | . . . . . . . . . . . . . Recycled Matter . | . . . . . . . . . . . . . Retrieved Matter . | . . . . . . . . . . . . . Retrieved Components 10 | . . . . . . . . 10 . . . . Parts Scanalyzed 1 | . . . . . . . . 1 . . . . Part Schematics Acquired 1 | . . . . . . . . 1 . . . . Parts Damaged 1 | . . . . . . . . 1 . . . . Bothacking | -11 -10 -10 -10 -9 -8 -8 -8 -7 -7 -7 -7 -7 ------------ Run | Yrd Mat Min Exi Min Mat Gar Mat Fac Low Low Zio Dee Used RIF Installer . | . . . . . . . . . . . . . Robots Hacked . | . . . . . . . . . . . . . Non-combat . | . . . . . . . . . . . . . Combat . | . . . . . . . . . . . . . Robot Hacks Applied . | . . . . . . . . . . . . . Relay Couplers Released 6 | . . . . . . 4 2 . . . . . Machine Destruction 6 | . . . . . . 4 2 . . . . . Fabnet Peak Effective % . | . . . . . . . . . . . . . Robots Rewired 4 | . . . . . . . . . 4 . . . Allies Hacked . | . . . . . . . . . . . . . Hacks Repelled . | . . . . . . . . . . . . . Allies | -11 -10 -10 -10 -9 -8 -8 -8 -7 -7 -7 -7 -7 -------- Run | Yrd Mat Min Exi Min Mat Gar Mat Fac Low Low Zio Dee Total Allies 9 | . . . . 3 . . . . 4 . 2 . Largest Group 4 | . . . . 3 3 . . . 4 4 4 4 Highest-Rated Group 242 | . . . . 40 37 . . . 106 106 242 242 Highest-Rated Ally 96 | . . . . 16 16 . . . 31 31 96 96 Total Orders 2 | . . . . . 2 . . . . . . . STAY 1 | . . . . . 1 . . . . . . . FOLLOW 1 | . . . . . 1 . . . . . . . Ally Attacks 73 | . . . . 9 22 . . . . 6 . 36 Total Damage 1383 | . . . . 77 252 . . . . 117 . 937 Kills 14 | . . . . 4 4 . . . . 2 . 4 Allies Corrupted . | . . . . . . . . . . . . . Allies Melted . | . . . . . . . . . . . . . Intel | -11 -10 -10 -10 -9 -8 -8 -8 -7 -7 -7 -7 -7 ------- Run | Yrd Mat Min Exi Min Mat Gar Mat Fac Low Low Zio Dee Robot Analysis Total 5 | . 3 . . . 2 . . . . . . . Derelict Logs Recovered 2 | . . 1 . 1 . . . . . . . . Drone Launches . | . . . . . . . . . . . . . Drone Recoveries . | . . . . . . . . . . . . . Exploration | -11 -10 -10 -10 -9 -8 -8 -8 -7 -7 -7 -7 -7 ------------- Run | Yrd Mat Min Exi Min Mat Gar Mat Fac Low Low Zio Dee Turns Passed 12605 | 40 1050 1006 423 768 891 1438 1267 1426 700 329 1556 1711 Spaces Moved 6848 | 16 649 542 217 477 617 765 575 803 398 200 978 611 Core . | . . . . . . . . . . . . . Treads 256 | . 138 2 . . . 3 8 . . . . 105 Legs 281 | 16 265 . . . . . . . . . . . Wheels 6311 | . 246 540 217 477 617 762 567 803 398 200 978 506 Hover . | . . . . . . . . . . . . . Flight . | . . . . . . . . . . . . . Fastest Speed 95 | 120 95 135 155 155 110 130 140 150 150 150 150 180 Average Speed 156 | 120 134 158 191 155 120 160 156 150 150 150 157 216 Slowest Speed 545 | 120 200 480 215 155 155 545 465 150 210 150 210 330 Overloaded Moves . | . . . . . . . . . . . . . Propulsion Burnouts . | . . . . . . . . . . . . . Robots Hopped 1 | . . . . . . . . . . 1 . . Cave-ins Triggered . | . . . . . . . . . . . . . Exploration Rate (%) 61 | 2 92 84 61 98 47 76 51 23 66 42 85 78 Regions Visited 12 Branch Regions 7 Pre-discovered Areas 6 | . 1 1 1 1 . . . . 1 . 1 . Known Exits Taken 6 | . . . . . 1 . 1 1 1 1 1 . Unknown Exits Taken 5 | 1 1 1 1 1 . . . . . . . . Scrap Searched 8 | . . 3 . 2 . . . . 1 . 2 . Spaces Dug 32 | . . . . . 10 . 1 20 . 1 . . Terrain Destroyed 235 | . . 43 . . 47 76 26 20 . 23 . . Melee 5 | . . . . . . . 1 4 . . . . Projectile 11 | . . 2 . . . . 8 . . 1 . . AOE 219 | . . 41 . . 47 76 17 16 . 22 . . Terrain Rammed . | . . . . . . . . . . . . . Walls Destroyed . | . . . . . . . . . . . . . Machines Disabled . | . . . . . . . . . . . . . Actions | -11 -10 -10 -10 -9 -8 -8 -8 -7 -7 -7 -7 -7 --------- Run | Yrd Mat Min Exi Min Mat Gar Mat Fac Low Low Zio Dee Total 8096 | 23 744 627 229 507 724 880 774 954 490 213 997 934 Wait 461 | . 11 35 . 29 28 15 59 54 2 . 5 223 Move 6833 | 15 648 541 216 476 617 762 574 802 397 197 977 611 Hop 1 | . . . . . . . . . . 1 . . Pick Up 83 | . 20 2 3 1 13 6 14 9 5 . 6 4 Fast Attach 26 | 1 2 2 . . 6 . 2 1 4 . . 8 Attach 28 | . 1 . . . 2 1 8 2 1 . 1 12 Detach 3 | . 1 . . . 1 . . . . . . 1 Swap 113 | . 9 8 2 . 11 17 19 29 3 5 3 7 Drop 103 | . 8 6 8 1 20 6 15 16 5 . 5 13 Fire 338 | 7 44 33 . . 26 45 79 37 7 10 . 50 Melee 24 | . . . . . . 13 2 4 . . . 5 Ram 2 | . . . . . . . 2 . . . . . Kick . | . . . . . . . . . . . . . Crush . | . . . . . . . . . . . . . Escape Stasis 15 | . . . . . . 15 . . . . . . Rewire 66 | . . . . . . . . . 66 . . . Trap . | . . . . . . . . . . . . . Miscellaneous . | . . . . . . . . . . . . . Route ------- -11/Scrapyard -10/Materials (discovered 3 exits: [*Mat x2] / [*Min]) -10/Mines (discovered 3 exits: [*Mat x2] / *Exi) -10/Exiles (discovered 2 exits: [*Min x2]) -9/Mines (discovered 2 exits: *Mat x2) -8/Materials (discovered 3 exits: *Fac x2 / Gar) -8/Garrison (discovered 3 exits: *Mat x3) -8/Materials -7/Factory (discovered 3 exits: *Fac / *Low x2) -7/Lower Caves -7/Lower Caves -7/Zion (discovered 2 exits: *Dee / [*Pro]) -7/Deep Caves (discovered 1 exit: *Pro) History --------- Turn | Location | Event 1 | -11/Scrapyard | Discovered new exit (range 3) 41 | -11/Scrapyard | Entered Materials 138 | -10/Materials | Discovered new exit (range 16) 315 | -10/Materials | Build established: Mutant 445 | -10/Materials | Discovered new exit (range 13) 825 | -10/Materials | Discovered new exit (range 16) 1091 | -10/Materials | Entered Mines 1218 | -10/Mines | Deemed a non-threat by the Exiles lab entrance 1218 | -10/Mines | Discovered new exit (range 5) 1483 | -10/Mines | Found a hidden stash of uninstalled traps 1501 | -10/Mines | Discovered new exit (range 6) 1613 | -10/Mines | Discovered new exit (range 14) 1614 | -10/Mines | Received a Rocket Launcher from a helpful Derelict 2097 | -10/Mines | Entered Exiles 2125 | -10/Exiles | Discovered new exit (range 15) 2151 | -10/Exiles | Met 8R-AWN 2186 | -10/Exiles | Met EX-HEX 2246 | -10/Exiles | Met EX-BIN 2276 | -10/Exiles | Met EX-DEC 2287 | -10/Exiles | Learned location of Zion (-7) 2507 | -10/Exiles | Discovered new exit (range 10) 2520 | -10/Exiles | Entered Mines 2521 | -9/Mines | Learned location of Storage (-9) 2590 | -9/Mines | YI-UF0 nonchalantly dropped a Grenade Launcher on the ground 2614 | -9/Mines | Assisted by bots powering up and referring to "LRC-V3" 2972 | -9/Mines | Discovered new exit (range 7) 3164 | -9/Mines | Discovered new exit (range 9) 3288 | -9/Mines | Entered Materials 3288 | -8/Materials | Accompanied by 3 allies 3288 | -8/Materials | Evolved 4 slots: Propulsion x1, Utility x2, Weapon x1 3289 | -8/Materials | Identified exit to Factory 3589 | -8/Materials | Build established: Tank 3652 | -8/Materials | Discovered exit to Factory (range 4) 4177 | -8/Materials | Identified exit to Garrison 4179 | -8/Materials | Entered Garrison 4357 | -8/Garrison | Triggered checkpoint 4431 | -8/Garrison | Triggered checkpoint 4461 | -8/Garrison | Triggered checkpoint 4567 | -8/Garrison | Triggered checkpoint 4616 | -8/Garrison | Learned Materials security intel 4664 | -8/Garrison | Discovered new exit (range 12) 4768 | -8/Garrison | Triggered checkpoint 4944 | -8/Garrison | Discovered new exit (range 13) 4979 | -8/Garrison | Attempted to access garrison exit controls, blocked by remote lockdown 5132 | -8/Garrison | Build established: Mutant 5179 | -8/Garrison | Attempted to access garrison exit controls, blocked by remote lockdown 5237 | -8/Garrison | Triggered checkpoint 5309 | -8/Garrison | Triggered checkpoint 5395 | -8/Garrison | Discovered new exit (range 57) 5395 | -8/Garrison | Discovered new exit (range 12) 5395 | -8/Garrison | Discovered new exit (range 56) 5617 | -8/Garrison | Entered Materials 5864 | -8/Materials | Destroyed 10 combat bots 5873 | -8/Materials | Lost 5 parts (2n2u1w) 6145 | -8/Materials | Discovered exit to Factory (range 11) 6441 | -8/Materials | Build established: Scavenger-Gunner 6680 | -8/Materials | Core integrity fell below 50% 6817 | -8/Materials | First assault squad dispatched 6884 | -8/Materials | Entered Factory 6884 | -7/Factory | Evolved 2 slots: Utility x2 6906 | -7/Factory | Discovered new exit (range 15) 6933 | -7/Factory | Identified exit to Factory 7198 | -7/Factory | Build established: Hacker-Mutant 7852 | -7/Factory | Repaired Broken Hvy. Treads? 7928 | -7/Factory | Build established: Hacker-Skirmisher 7937 | -7/Factory | Identified exit to Lower Caves 8310 | -7/Factory | Entered Lower Caves 8319 | -7/Lower Caves | Met a Warlord Commander 8320 | -7/Lower Caves | Learned location of Warlord (-5) 8321 | -7/Lower Caves | Warlord Commander delivered Encrypted Comm Array 8333 | -7/Lower Caves | Found Encrypted Comm Array 8571 | -7/Lower Caves | Attacked by a delusional Derelict stockpiling Unaware 8612 | -7/Lower Caves | Build established: Scavenger-Skirmisher 8806 | -7/Lower Caves | Discovered new exit (range 6) 8812 | -7/Lower Caves | Identified exit to Lower Caves 9010 | -7/Lower Caves | Entered another Lower Caves area 9010 | -7/Lower Caves | Accompanied by 4 allies 9219 | -7/Lower Caves | Attracted the attention of an 0b10 checkpoint 9288 | -7/Lower Caves | Discovered new exit (range 16) 9309 | -7/Lower Caves | Identified exit to Zion 9339 | -7/Lower Caves | Entered Zion 9339 | -7/Zion | Accompanied by 2 allies 9464 | -7/Zion | Discovered new exit (range 11) 9744 | -7/Zion | Acquired unknown access codes intercepted by a Zionite 10100 | -7/Zion | Given A8's code to call for help 10127 | -7/Zion | Given the Hacking Drone Bay 10128 | -7/Zion | Found Prototype Device 10453 | -7/Zion | Build established: Skirmisher 10808 | -7/Zion | Opened final containment barrier to the Deep Caves 10827 | -7/Zion | Enhanced Grunt warped into view, answering call for help 10837 | -7/Zion | Enhanced Grunt warped into view, answering call for help 10853 | -7/Zion | Discovered new exit (range 3) 10853 | -7/Zion | Saw the warning signs outside the Deep Caves entrance 10889 | -7/Zion | Identified exit to Deep Caves 10895 | -7/Zion | Entered Deep Caves 10895 | -7/Deep Caves | Accompanied by 4 allies 11061 | -7/Deep Caves | Attacked by Z-Imprinter 11087 | -7/Deep Caves | Destroyed Z-Imprinter 11113 | -7/Deep Caves | Lost 3 allies 11192 | -7/Deep Caves | Found Prototype Protection 11192 | -7/Deep Caves | Identified Zio. Weapon Casing 11259 | -7/Deep Caves | Build established: Tank 11273 | -7/Deep Caves | Z-Facility disabled 11843 | -7/Deep Caves | Discovered new exit (range 7) 11858 | -7/Deep Caves | Identified exit to Proximity Caves 12101 | -7/Deep Caves | Spotted AG-50993 12139 | -7/Deep Caves | Destroyed AG-50993 12151 | -7/Deep Caves | Found GOLEM Unit 12218 | -7/Deep Caves | Spotted AG-75203 12373 | -7/Deep Caves | Destroyed AG-75203 12510 | -7/Deep Caves | Triggered Deep Caves wall 12510 | -7/Deep Caves | Spotted AS-62553 12514 | -7/Deep Caves | Exposed GOLEM chamber 12516 | -7/Deep Caves | Destroyed AS-62553 12539 | -7/Deep Caves | Spotted AS-30451 12551 | -7/Deep Caves | Core integrity fell below 50% 12580 | -7/Deep Caves | Destroyed 38 combat bots 12589 | -7/Deep Caves | Core integrity fell below 20% 12606 | -7/Deep Caves | Destroyed by as-02532 with Assembled P-sword Last Messages --------------- 12574_ GOLEM Unit springs to life. 12575_ as-69339 released from Mobile Assembly Unit. 12575_ AG-49460 GOLEM Unit beginning Prototype Leg integration. 12584_ Beamcaster destroyed. 12585_ as-23116 released from Mobile Assembly Unit. 12587_ Acquired Mak. Shrapnel Gun. 12589_ GOLEM Unit beginning Asb. Biocell Array integration. 12589_ Mak. Shrapnel Gun destroyed. 12590_ GOLEM Unit springs to life. 12590_ Arm. Wheel destroyed. 12590_ System corrupted by crushing effect (+5). 12590_ Knocked back. 12591_ AG-39290 GOLEM Unit beginning Prototype Leg integration. 12595_ as-91608 released from Mobile Assembly Unit. 12599_ Penetrated by Slug. 12602_ 0F-KF1(l) destroyed. 12603_ Penetrated by Slug. 12603_ IQ-6GS(g) destroyed. 12605_ as-92264 released from Mobile Assembly Unit. 12605_ Penetrated by Slug. Map ----- +----------------------------------------------------+ | ????????""##########??????????????????????????? | | ????????? ??????????????#####????????? | | ?????????? #?????????????## #######??? | | ????????""" ??????????????# #??? | | ????????" #####??????????# ### #??? | | ????????" # # #??????????# ##?# #??? | | ????????"" # # #??????????# #??# #??? | | ????????" # #?##???????# ##### #??? | | ????????"" # #? #???????# #### #??# | | ????????" #? #???????# ### ### | | ????????""" #? #???????# | | ????????" ## #???????###### | | ????????" # #####???????## | | ????????" #??????## # | | ????????# ###??????# # | | ????????"" ##????????# ### # | | ?????????" ###?????????# ##?## | | ?????????"A #????????## #???## | | ???????""" s = #####???????# ##???# | | ???????" G | #?# #???????# #???# | | ??????### a ### ####???## #???## | | ?????"" a # #??## #????### | | ??? ;;##??# #??????# | | ??? ###??# #??????? | | ??" | a g a #??### ##?####? | | ??" = | a@ / ###????# ### ## | | ??" ]a / ##????## # | | ??? ! #???## | | ??? % #??## | | ????""" #??# | | ??????### /% #??# | | ??????#" G /[ #??# | | ??????# G a s !%[ #??# | | ??????#! [ ! #??## ## | | ??????#"" [ ##??# ######## | | ????????" ] #??# ######?## | | ????????# == #??# #??# | | ????????" ] #?## ## #??# | | ????????" / ### ## #??# | | ????????" / g # ###? | | ????????""" ] ] s / ##### ## | | ????????" #???# | | ????????"" != ## #???# " | | ????????" !%] ### ##??# """ | | ????????"" != ##?## ##?## "" | | ????????" #%# "#??## #??## | | ????????" ###" ## ## ###???# #???## | | ????????""" ##??## ##[####?????# ##????##### | | ??????????? ?????#### #????????####?????????? | | ?????????????#????????###?????????????????????? | +----------------------------------------------------+ Best States ------------- Heat Dissipation 34 Energy Generation 16 Energy Capacity 890 Matter Stores 300 Matter Capacity 300 Sight Range 16 Robot Scan Range 15 Terrain Scan Density 10 Armor Coverage 600 Weapon Shielding 100 Evasion (%) 55 Targeting Accuracy 8 Recoil Reduction 3 Offensive Hacking 20 Item Schematics ----------------- Hvy. Treads | -7/Factory | Scanalyzed Robot Schematics ------------------ None Fabricated ------------ Nothing Alien Tech Used ----------------- None Achievements -------------- None Challenges ------------ None Game ------ Seed AntimatterBladeShotgun Manual? 0 Play Time 01:37:50 Cumulative 184.0 hours Start 2024.05.12 @ 12:48:23 End 2024.05.12 @ 14:43:28 Sessions 3 Manual Loads 0 Difficulty Rogue Special Mode None Game No. 151 Rogue 151 Adventurer 0 Explorer 0 Win Type - Total 3 Types 2/0/0/1/0/0/0/0/0 Lore% 59 Gallery% 79 Achievement% 62 Wizard Run 0 Options --------- Layout 2 ASCII 0 Keyboard 1 Movement Numpad Keybinds 0 Fullscreen 1 Font 32/SmallcapsGlow Map View 77x44 Zoom Use 0% Tactical HUD 1 Map Filters NONE Filters NONE Steam 1 RUN: 21793bce-3919-41e1-9a9c-84a6ae36205a